[Event "Titled Tuesday Blitz December 06 Late 2022"]
[White "Yoo, Christopher Woojin"]
[Black "Popilski, Gil"]
[WhiteFideId "30909694"]
[BlackFideId "2809060"]
[WhiteElo "2463"]
[BlackElo "2537"]
[Result "1/2-1/2"]
[Round "07"]
[TimeControl "180+1"]
[Date "2022.12.06"]
[WhiteClock "0:00:13"]
[BlackClock "0:00:06"]

1. Nf3 {[%clk 0:03:00]}  d5 {[%clk 0:02:58]} 2. b3 {[%clk 0:03:00]}  Bg4 {[%clk 0:02:54]} 3. Bb2 {[%clk 0:02:56]}  Bxf3 {[%clk 0:02:53]} 4. exf3 {[%clk 0:02:55]}  e6 {[%clk 0:02:53]} 5. g3 {[%clk 0:02:55]}  Nf6 {[%clk 0:02:52]} 6. Bg2 {[%clk 0:02:56]}  Nc6 {[%clk 0:02:49]} 7. f4 {[%clk 0:02:55]}  Ne7 {[%clk 0:02:49]} 8. O-O {[%clk 0:02:53]}  h5 {[%clk 0:02:48]} 9. h4 {[%clk 0:02:52]}  Nf5 {[%clk 0:02:46]} 10. Bh3 {[%clk 0:02:49]}  g6 {[%clk 0:02:44]} 11. d3 {[%clk 0:02:43]}  Bc5 {[%clk 0:02:42]} 12. Kg2 {[%clk 0:02:34]}  Bd4 {[%clk 0:02:31]} 13. c3 {[%clk 0:02:30]}  Bb6 {[%clk 0:02:29]} 14. Nd2 {[%clk 0:02:31]}  c6 {[%clk 0:02:28]} 15. Nf3 {[%clk 0:02:31]}  O-O {[%clk 0:02:24]} 16. Qe2 {[%clk 0:02:31]}  Re8 {[%clk 0:02:18]} 17. Rad1 {[%clk 0:02:28]}  a5 {[%clk 0:02:17]} 18. a4 {[%clk 0:02:27]}  Bc5 {[%clk 0:02:10]} 19. c4 {[%clk 0:02:28]}  Bf8 {[%clk 0:02:06]} 20. Rfe1 {[%clk 0:02:23]}  Bg7 {[%clk 0:02:05]} 21. Ne5 {[%clk 0:02:18]}  Qb6 {[%clk 0:01:57]} 22. Bxf5 {[%clk 0:02:09]}  exf5 {[%clk 0:01:55]} 23. Qc2 {[%clk 0:02:07]}  Rad8 {[%clk 0:01:53]} 24. Re2 {[%clk 0:02:04]}  Re6 {[%clk 0:01:44]} 25. Rde1 {[%clk 0:01:59]}  Rde8 {[%clk 0:01:40]} 26. Nxg6 {[%clk 0:01:56]}  Rxe2 {[%clk 0:01:32]} 27. Rxe2 {[%clk 0:01:57]}  fxg6 {[%clk 0:01:25]} 28. cxd5 {[%clk 0:01:12]}  Qd8 {[%clk 0:01:05]} 29. Rxe8+ {[%clk 0:00:59]}  Nxe8 {[%clk 0:01:01]} 30. dxc6 {[%clk 0:00:59]}  Qd5+ {[%clk 0:00:54]} 31. f3 {[%clk 0:00:59]}  bxc6 {[%clk 0:00:54]} 32. Ba3 {[%clk 0:00:52]}  Bd4 {[%clk 0:00:50]} 33. Qe2 {[%clk 0:00:47]}  Nf6 {[%clk 0:00:44]} 34. Qe7 {[%clk 0:00:45]}  c5 {[%clk 0:00:44]} 35. Bc1 {[%clk 0:00:18]}  Qxb3 {[%clk 0:00:36]} 36. Qd8+ {[%clk 0:00:17]}  Kg7 {[%clk 0:00:36]} 37. Qe7+ {[%clk 0:00:15]}  Qf7 {[%clk 0:00:35]} 38. Qe2 {[%clk 0:00:15]}  Nd5 {[%clk 0:00:33]} 39. Bd2 {[%clk 0:00:15]}  Nb4 {[%clk 0:00:33]} 40. Kh3 {[%clk 0:00:13]}  Kh6 {[%clk 0:00:31]} 41. g4 {[%clk 0:00:05]}  hxg4+ {[%clk 0:00:27]} 42. fxg4 {[%clk 0:00:06]}  Qb7 {[%clk 0:00:26]} 43. g5+ {[%clk 0:00:03]}  Kh7 {[%clk 0:00:26]} 44. Kg3 {[%clk 0:00:03]}  Nd5 {[%clk 0:00:16]} 45. h5 {[%clk 0:00:04]}  gxh5 {[%clk 0:00:15]} 46. Qxh5+ {[%clk 0:00:03]}  Kg8 {[%clk 0:00:16]} 47. Qg6+ {[%clk 0:00:03]}  Kf8 {[%clk 0:00:16]} 48. Qxf5+ {[%clk 0:00:03]}  Ke8 {[%clk 0:00:17]} 49. Qe6+ {[%clk 0:00:04]}  Ne7 {[%clk 0:00:17]} 50. f5 {[%clk 0:00:03]}  Qc7+ {[%clk 0:00:16]} 51. Bf4 {[%clk 0:00:03]}  Qd7 {[%clk 0:00:15]} 52. Qxd7+ {[%clk 0:00:01]}  Kxd7 {[%clk 0:00:16]} 53. Kg4 {[%clk 0:00:02]}  Nd5 {[%clk 0:00:16]} 54. Bd2 {[%clk 0:00:03]}  Nb4 {[%clk 0:00:16]} 55. f6 {[%clk 0:00:03]}  Ke6 {[%clk 0:00:16]} 56. Kh5 {[%clk 0:00:04]}  Kf7 {[%clk 0:00:16]} 57. Kg4 {[%clk 0:00:02]}  Kg6 {[%clk 0:00:16]} 58. Kf4 {[%clk 0:00:03]}  Nxd3+ {[%clk 0:00:16]} 59. Ke4 {[%clk 0:00:03]}  Nb2 {[%clk 0:00:16]} 60. Bxa5 {[%clk 0:00:03]}  Nxa4 {[%clk 0:00:17]} 61. Kd5 {[%clk 0:00:03]}  Kxg5 {[%clk 0:00:15]} 62. f7 {[%clk 0:00:03]}  Bg7 {[%clk 0:00:15]} 63. Ke6 {[%clk 0:00:02]}  Kg6 {[%clk 0:00:15]} 64. Ke7 {[%clk 0:00:02]}  c4 {[%clk 0:00:15]} 65. f8=Q {[%clk 0:00:02]}  Bxf8+ {[%clk 0:00:15]} 66. Kxf8 {[%clk 0:00:03]}  Kf6 {[%clk 0:00:16]} 67. Ke8 {[%clk 0:00:03]}  Ke6 {[%clk 0:00:16]} 68. Kf8 {[%clk 0:00:04]}  Kd5 {[%clk 0:00:16]} 69. Kf7 {[%clk 0:00:04]}  Nc5 {[%clk 0:00:17]} 70. Kf6 {[%clk 0:00:04]}  Nb3 {[%clk 0:00:17]} 71. Bc3 {[%clk 0:00:03]}  Nd4 {[%clk 0:00:18]} 72. Kg5 {[%clk 0:00:03]}  Ke4 {[%clk 0:00:18]} 73. Kg4 {[%clk 0:00:03]}  Kd3 {[%clk 0:00:18]} 74. Ba5 {[%clk 0:00:03]}  Nc6 {[%clk 0:00:18]} 75. Be1 {[%clk 0:00:03]}  Ne5+ {[%clk 0:00:18]} 76. Kf4 {[%clk 0:00:03]}  Nc6 {[%clk 0:00:18]} 77. Kf3 {[%clk 0:00:02]}  Nd4+ {[%clk 0:00:18]} 78. Kf2 {[%clk 0:00:03]}  Nb3 {[%clk 0:00:18]} 79. Bb4 {[%clk 0:00:03]}  Nd4 {[%clk 0:00:17]} 80. Ba5 {[%clk 0:00:02]}  Nc2 {[%clk 0:00:16]} 81. Kf3 {[%clk 0:00:02]}  Ne3 {[%clk 0:00:15]} 82. Kf2 {[%clk 0:00:02]}  Nc2 {[%clk 0:00:14]} 83. Kf3 {[%clk 0:00:02]}  Na1 {[%clk 0:00:14]} 84. Kf2 {[%clk 0:00:02]}  Kc2 {[%clk 0:00:14]} 85. Ke3 {[%clk 0:00:02]}  Kb3 {[%clk 0:00:14]} 86. Kd2 {[%clk 0:00:02]}  Nc2 {[%clk 0:00:13]} 87. Bc3 {[%clk 0:00:02]}  Nb4 {[%clk 0:00:13]} 88. Bh8 {[%clk 0:00:02]}  Nd5 {[%clk 0:00:12]} 89. Bd4 {[%clk 0:00:03]}  Nb4 {[%clk 0:00:11]} 90. Bh8 {[%clk 0:00:03]}  Na6 {[%clk 0:00:11]} 91. Bd4 {[%clk 0:00:03]}  Nc7 {[%clk 0:00:11]} 92. Be5 {[%clk 0:00:04]}  Nb5 {[%clk 0:00:10]} 93. Bh8 {[%clk 0:00:04]}  Na3 {[%clk 0:00:08]} 94. Bg7 {[%clk 0:00:05]}  Nb1+ {[%clk 0:00:09]} 95. Kc1 {[%clk 0:00:05]}  Nc3 {[%clk 0:00:10]} 96. Kd2 {[%clk 0:00:05]}  Ne4+ {[%clk 0:00:09]} 97. Ke3 {[%clk 0:00:06]}  Nd6 {[%clk 0:00:09]} 98. Kd2 {[%clk 0:00:06]}  Nf5 {[%clk 0:00:06]} 99. Bh8 {[%clk 0:00:06]}  Nh4 {[%clk 0:00:06]} 100. Bf6 {[%clk 0:00:06]}  Nf3+ {[%clk 0:00:06]} 101. Ke3 {[%clk 0:00:06]}  Ne1 {[%clk 0:00:07]} 102. Kd2 {[%clk 0:00:07]}  Nd3 {[%clk 0:00:07]} 103. Bh8 {[%clk 0:00:06]}  Nc5 {[%clk 0:00:07]} 104. Bg7 {[%clk 0:00:07]}  Ne4+ {[%clk 0:00:06]} 105. Ke3 {[%clk 0:00:07]}  Nd6 {[%clk 0:00:06]} 106. Kd2 {[%clk 0:00:07]}  Nb5 {[%clk 0:00:06]} 107. Bh8 {[%clk 0:00:07]}  Ka2 {[%clk 0:00:06]} 108. Kc2 {[%clk 0:00:07]}  Ka3 {[%clk 0:00:06]} 109. Bc3 {[%clk 0:00:07]}  Ka4 {[%clk 0:00:05]} 110. Bd2 {[%clk 0:00:08]}  Na3+ {[%clk 0:00:05]} 111. Kc3 {[%clk 0:00:08]}  Kb5 {[%clk 0:00:05]} 112. Bc1 {[%clk 0:00:09]}  Nb1+ {[%clk 0:00:05]} 113. Kc2 {[%clk 0:00:09]}  c3 {[%clk 0:00:04]} 114. Kxb1 {[%clk 0:00:09]}  Kc4 {[%clk 0:00:05]} 115. Kc2 {[%clk 0:00:10]}  Kb4 {[%clk 0:00:05]} 116. Bh6 {[%clk 0:00:11]}  Ka3 {[%clk 0:00:05]} 117. Bg7 {[%clk 0:00:12]}  Ka2 {[%clk 0:00:06]} 118. Bxc3 {[%clk 0:00:13]} 1/2-1/2


[Site "https://www.chess.com"]

[Event "Titled Tuesday Blitz December 06 Late 2022"]
[White "Adewumi, Tanitoluwa"]
[Black "Figorito, Nick"]
[WhiteFideId "30966396"]
[BlackFideId "30923689"]
[WhiteElo "2511"]
[BlackElo "2395"]
[Result "1-0"]
[Round "08"]
[TimeControl "180+1"]
[Date "2022.12.07"]
[WhiteClock "0:01:00"]
[BlackClock "0:00:09"]

1. e4 {[%clk 0:02:40]}  e6 {[%clk 0:02:59]} 2. d4 {[%clk 0:02:39]}  d5 {[%clk 0:03:00]} 3. exd5 {[%clk 0:02:39]}  exd5 {[%clk 0:03:01]} 4. Nf3 {[%clk 0:02:39]}  Bd6 {[%clk 0:03:01]} 5. c4 {[%clk 0:02:38]}  Nf6 {[%clk 0:02:59]} 6. c5 {[%clk 0:02:36]}  Be7 {[%clk 0:02:59]} 7. Bd3 {[%clk 0:02:36]}  b6 {[%clk 0:03:00]} 8. Be3 {[%clk 0:02:35]}  bxc5 {[%clk 0:02:56]} 9. dxc5 {[%clk 0:02:35]}  O-O {[%clk 0:02:55]} 10. O-O {[%clk 0:02:35]}  Bg4 {[%clk 0:02:48]} 11. Nbd2 {[%clk 0:02:32]}  Nc6 {[%clk 0:02:46]} 12. h3 {[%clk 0:02:31]}  Bh5 {[%clk 0:02:46]} 13. Qa4 {[%clk 0:02:28]}  Qd7 {[%clk 0:02:28]} 14. Bb5 {[%clk 0:02:23]}  Qf5 {[%clk 0:02:14]} 15. Bxc6 {[%clk 0:02:22]}  Rab8 {[%clk 0:02:15]} 16. b3 {[%clk 0:02:09]}  Qg6 {[%clk 0:02:11]} 17. Ne5 {[%clk 0:02:01]}  Qf5 {[%clk 0:02:00]} 18. Nd7 {[%clk 0:01:57]}  Nxd7 {[%clk 0:01:59]} 19. Bxd7 {[%clk 0:01:58]}  Qg6 {[%clk 0:01:29]} 20. Bg4 {[%clk 0:01:52]}  Bf6 {[%clk 0:01:21]} 21. Bxh5 {[%clk 0:01:51]}  Qxh5 {[%clk 0:01:21]} 22. Rad1 {[%clk 0:01:48]}  Rbd8 {[%clk 0:01:06]} 23. Nf3 {[%clk 0:01:46]}  Rfe8 {[%clk 0:00:54]} 24. Nd4 {[%clk 0:01:39]}  Re4 {[%clk 0:00:39]} 25. Qxa7 {[%clk 0:01:35]}  Be5 {[%clk 0:00:32]} 26. Nc6 {[%clk 0:01:19]}  Re8 {[%clk 0:00:27]} 27. Nxe5 {[%clk 0:01:17]}  Qxe5 {[%clk 0:00:26]} 28. c6 {[%clk 0:01:12]}  Qd6 {[%clk 0:00:16]} 29. Qc5 {[%clk 0:01:11]}  Qg6 {[%clk 0:00:14]} 30. Qxd5 {[%clk 0:01:10]}  h5 {[%clk 0:00:13]} 31. Qg5 {[%clk 0:01:08]}  Qxc6 {[%clk 0:00:13]} 32. Qxh5 {[%clk 0:01:06]}  R4e6 {[%clk 0:00:11]} 33. Rd5 {[%clk 0:01:04]}  Rg6 {[%clk 0:00:11]} 34. Rg5 {[%clk 0:01:03]}  Ree6 {[%clk 0:00:09]} 35. Rxg6 {[%clk 0:01:03]}  Rxg6 {[%clk 0:00:10]} 36. g3 {[%clk 0:01:00]}  Qe4 {[%clk 0:00:09]} 37. Rd1 {[%clk 0:00:59]}  Rxg3+ {[%clk 0:00:07]} 38. fxg3 {[%clk 0:00:59]}  Qxe3+ {[%clk 0:00:08]} 39. Kg2 {[%clk 0:00:59]}  g6 {[%clk 0:00:08]} 40. Qf3 {[%clk 0:00:58]}  Qe6 {[%clk 0:00:06]} 41. Rf1 {[%clk 0:00:58]}  Kg7 {[%clk 0:00:05]} 42. Qxf7+ {[%clk 0:00:58]}  Qxf7 {[%clk 0:00:06]} 43. Rxf7+ {[%clk 0:00:59]}  Kxf7 {[%clk 0:00:07]} 44. a4 {[%clk 0:01:00]}  c5 {[%clk 0:00:07]} 45. a5 {[%clk 0:01:00]}  Ke6 {[%clk 0:00:08]} 46. a6 {[%clk 0:01:00]}  Kd7 {[%clk 0:00:09]} 47. a7 {[%clk 0:01:00]}  Kc7 {[%clk 0:00:09]} 48. a8=Q {[%clk 0:01:00]} 1-0


[Site "https://www.chess.com"]

[Event "Titled Tuesday Blitz December 06 Late 2022"]
[White "Aldokhin, Ivan"]
[Black "Mazurkiewicz, Michal"]
[WhiteFideId "24115720"]
[BlackFideId "1124943"]
[WhiteElo "2313"]
[BlackElo "2081"]
[Result "0-1"]
[Round "08"]
[TimeControl "180+1"]
[Date "2022.12.07"]
[WhiteClock "0:00:02"]
[BlackClock "0:01:22"]

1. e4 {[%clk 0:02:59]}  d6 {[%clk 0:03:00]} 2. Nc3 {[%clk 0:02:59]}  Nf6 {[%clk 0:03:00]} 3. d4 {[%clk 0:03:00]}  c6 {[%clk 0:03:00]} 4. Nf3 {[%clk 0:02:59]}  Bg4 {[%clk 0:02:58]} 5. h3 {[%clk 0:02:57]}  Bh5 {[%clk 0:02:58]} 6. g4 {[%clk 0:02:52]}  Bg6 {[%clk 0:02:58]} 7. Bd3 {[%clk 0:02:53]}  e6 {[%clk 0:02:58]} 8. Qe2 {[%clk 0:02:14]}  d5 {[%clk 0:02:57]} 9. Bf4 {[%clk 0:01:58]}  dxe4 {[%clk 0:02:45]} 10. Nxe4 {[%clk 0:01:55]}  Nxe4 {[%clk 0:02:45]} 11. Bxe4 {[%clk 0:01:55]}  Bd6 {[%clk 0:02:46]} 12. Ne5 {[%clk 0:01:52]}  Bxe4 {[%clk 0:02:17]} 13. Qxe4 {[%clk 0:01:51]}  Qc7 {[%clk 0:02:11]} 14. O-O-O {[%clk 0:01:38]}  Nd7 {[%clk 0:02:10]} 15. g5 {[%clk 0:01:27]}  O-O-O {[%clk 0:02:03]} 16. Bg3 {[%clk 0:01:20]}  Nxe5 {[%clk 0:02:02]} 17. Bxe5 {[%clk 0:01:06]}  Bxe5 {[%clk 0:02:01]} 18. dxe5 {[%clk 0:01:06]}  g6 {[%clk 0:01:58]} 19. f4 {[%clk 0:01:05]}  Rd5 {[%clk 0:01:56]} 20. c4 {[%clk 0:01:05]}  Rdd8 {[%clk 0:01:51]} 21. b4 {[%clk 0:00:52]}  Qb6 {[%clk 0:01:49]} 22. c5 {[%clk 0:00:52]}  Qa6 {[%clk 0:01:45]} 23. Kb2 {[%clk 0:00:50]}  Rd5 {[%clk 0:01:43]} 24. Rxd5 {[%clk 0:00:44]}  cxd5 {[%clk 0:01:43]} 25. Qd4 {[%clk 0:00:37]}  Qe2+ {[%clk 0:01:39]} 26. Ka1 {[%clk 0:00:37]}  h6 {[%clk 0:01:36]} 27. a4 {[%clk 0:00:04]}  hxg5 {[%clk 0:01:32]} 28. fxg5 {[%clk 0:00:05]}  Qg2 {[%clk 0:01:28]} 29. Rc1 {[%clk 0:00:04]}  Rxh3 {[%clk 0:01:23]} 30. Qc3 {[%clk 0:00:01]}  Rxc3 {[%clk 0:01:22]} 31. Rxc3 {[%clk 0:00:02]}  Qxg5 {[%clk 0:01:22]} 0-1


[Site "https://www.chess.com"]

[Event "Titled Tuesday Blitz December 06 Late 2022"]
[White "Ambartsumova, Karina"]
[Black "Graif, William"]
[WhiteFideId "4166299"]
[BlackFideId "2609835"]
[WhiteElo "2319"]
[BlackElo "2205"]
[Result "1-0"]
[Round "08"]
[TimeControl "180+1"]
[Date "2022.12.07"]
[WhiteClock "0:00:12"]
[BlackClock "0:00:10"]

1. Nf3 {[%clk 0:02:57]}  d5 {[%clk 0:02:53]} 2. c4 {[%clk 0:02:56]}  e6 {[%clk 0:02:52]} 3. e3 {[%clk 0:02:57]}  Nf6 {[%clk 0:02:51]} 4. b3 {[%clk 0:02:57]}  b6 {[%clk 0:02:41]} 5. Bb2 {[%clk 0:02:57]}  Bb7 {[%clk 0:02:41]} 6. Nc3 {[%clk 0:02:55]}  Nbd7 {[%clk 0:02:28]} 7. Be2 {[%clk 0:02:55]}  Bd6 {[%clk 0:02:21]} 8. O-O {[%clk 0:02:54]}  a6 {[%clk 0:02:15]} 9. d4 {[%clk 0:02:50]}  O-O {[%clk 0:02:13]} 10. Rc1 {[%clk 0:02:50]}  Qe7 {[%clk 0:02:02]} 11. Re1 {[%clk 0:02:43]}  Ne4 {[%clk 0:01:23]} 12. Nxe4 {[%clk 0:02:24]}  dxe4 {[%clk 0:01:23]} 13. Nd2 {[%clk 0:02:25]}  f5 {[%clk 0:01:12]} 14. Nf1 {[%clk 0:02:25]}  Qh4 {[%clk 0:01:06]} 15. a3 {[%clk 0:02:10]}  Rf6 {[%clk 0:00:35]} 16. g3 {[%clk 0:02:10]}  Qh3 {[%clk 0:00:35]} 17. c5 {[%clk 0:02:01]}  bxc5 {[%clk 0:00:18]} 18. dxc5 {[%clk 0:02:02]}  Ne5 {[%clk 0:00:18]} 19. Bxe5 {[%clk 0:01:36]}  Bxe5 {[%clk 0:00:18]} 20. c6 {[%clk 0:01:35]}  Bc8 {[%clk 0:00:16]} 21. Qc2 {[%clk 0:01:11]}  Bd6 {[%clk 0:00:16]} 22. Red1 {[%clk 0:00:59]}  e5 {[%clk 0:00:15]} 23. Bc4+ {[%clk 0:00:59]}  Kf8 {[%clk 0:00:12]} 24. Bd5 {[%clk 0:00:51]}  f4 {[%clk 0:00:09]} 25. exf4 {[%clk 0:00:41]}  exf4 {[%clk 0:00:10]} 26. Bxe4 {[%clk 0:00:38]}  f3 {[%clk 0:00:10]} 27. Bxf3 {[%clk 0:00:36]}  Rxf3 {[%clk 0:00:09]} 28. Qe4 {[%clk 0:00:20]}  Bg4 {[%clk 0:00:09]} 29. Ne3 {[%clk 0:00:18]}  h5 {[%clk 0:00:07]} 30. Rxd6 {[%clk 0:00:16]}  cxd6 {[%clk 0:00:06]} 31. c7 {[%clk 0:00:17]}  Rc8 {[%clk 0:00:06]} 32. Nd5 {[%clk 0:00:15]}  Rf7 {[%clk 0:00:04]} 33. Qb4 {[%clk 0:00:12]}  Bf3 {[%clk 0:00:03]} 34. Qxd6+ {[%clk 0:00:11]}  Kg8 {[%clk 0:00:04]} 35. Ne3 {[%clk 0:00:12]}  Rd7 {[%clk 0:00:03]} 36. Qf4 {[%clk 0:00:12]}  Bb7 {[%clk 0:00:02]} 37. Qb4 {[%clk 0:00:07]}  Qe6 {[%clk 0:00:02]} 38. Qxb7 {[%clk 0:00:07]}  Re7 {[%clk 0:00:02]} 39. Rd1 {[%clk 0:00:05]}  Rcxc7 {[%clk 0:00:01]} 40. Qb8+ {[%clk 0:00:05]}  Kh7 {[%clk 0:00:02]} 41. Qb4 {[%clk 0:00:05]}  Rcd7 {[%clk 0:00:02]} 42. Rf1 {[%clk 0:00:05]}  Qf6 {[%clk 0:00:03]} 43. Qc4 {[%clk 0:00:04]}  Qg6 {[%clk 0:00:03]} 44. b4 {[%clk 0:00:04]}  Ra7 {[%clk 0:00:04]} 45. a4 {[%clk 0:00:04]}  Rec7 {[%clk 0:00:04]} 46. Qb3 {[%clk 0:00:04]}  a5 {[%clk 0:00:04]} 47. b5 {[%clk 0:00:04]}  Rab7 {[%clk 0:00:05]} 48. Rb1 {[%clk 0:00:04]}  Qf6 {[%clk 0:00:06]} 49. h4 {[%clk 0:00:04]}  Kh8 {[%clk 0:00:05]} 50. Nd5 {[%clk 0:00:04]}  Qd6 {[%clk 0:00:04]} 51. Nxc7 {[%clk 0:00:05]}  Qxc7 {[%clk 0:00:05]} 52. b6 {[%clk 0:00:05]}  Qc6 {[%clk 0:00:05]} 53. Qb5 {[%clk 0:00:06]}  Qc3 {[%clk 0:00:04]} 54. Kg2 {[%clk 0:00:06]}  g6 {[%clk 0:00:03]} 55. Rb3 {[%clk 0:00:06]}  Qd4 {[%clk 0:00:03]} 56. Rb1 {[%clk 0:00:05]}  Qe4+ {[%clk 0:00:03]} 57. Kg1 {[%clk 0:00:05]}  Qf5 {[%clk 0:00:03]} 58. Qxf5 {[%clk 0:00:04]}  gxf5 {[%clk 0:00:04]} 59. Rb5 {[%clk 0:00:05]}  Kg7 {[%clk 0:00:05]} 60. Kg2 {[%clk 0:00:05]}  Kg6 {[%clk 0:00:04]} 61. Kf3 {[%clk 0:00:06]}  Kf6 {[%clk 0:00:05]} 62. Kf4 {[%clk 0:00:07]}  Kg6 {[%clk 0:00:04]} 63. Ke5 {[%clk 0:00:06]}  f4 {[%clk 0:00:03]} 64. gxf4 {[%clk 0:00:06]}  Kf7 {[%clk 0:00:03]} 65. Kd6 {[%clk 0:00:06]}  Kf6 {[%clk 0:00:03]} 66. Kc6 {[%clk 0:00:07]}  Rf7 {[%clk 0:00:04]} 67. b7 {[%clk 0:00:07]}  Rf8 {[%clk 0:00:04]} 68. b8=Q {[%clk 0:00:07]}  Rxb8 {[%clk 0:00:05]} 69. Rxb8 {[%clk 0:00:08]}  Kf5 {[%clk 0:00:06]} 70. Rb5+ {[%clk 0:00:08]}  Kxf4 {[%clk 0:00:07]} 71. Rxh5 {[%clk 0:00:09]}  Kf3 {[%clk 0:00:07]} 72. Rxa5 {[%clk 0:00:10]}  Kxf2 {[%clk 0:00:08]} 73. Rb5 {[%clk 0:00:10]}  Kg3 {[%clk 0:00:09]} 74. h5 {[%clk 0:00:11]}  Kg4 {[%clk 0:00:10]} 75. h6 {[%clk 0:00:12]} 1-0


[Site "https://www.chess.com"]

[Event "Titled Tuesday Blitz December 06 Late 2022"]
[White "Andreikin, Dmitry"]
[Black "Abasov, Nijat"]
[WhiteFideId "4158814"]
[BlackFideId "13402960"]
[WhiteElo "2735"]
[BlackElo "2546"]
[Result "0-1"]
[Round "08"]
[TimeControl "180+1"]
[Date "2022.12.06"]
[WhiteClock "0:00:05"]
[BlackClock "0:00:09"]

1. d4 {[%clk 0:03:00]}  Nf6 {[%clk 0:03:00]} 2. c4 {[%clk 0:03:00]}  e6 {[%clk 0:03:00]} 3. Nf3 {[%clk 0:03:00]}  b6 {[%clk 0:03:00]} 4. a3 {[%clk 0:02:57]}  Bb7 {[%clk 0:03:01]} 5. Nc3 {[%clk 0:02:56]}  d5 {[%clk 0:03:02]} 6. cxd5 {[%clk 0:02:55]}  Nxd5 {[%clk 0:03:03]} 7. e3 {[%clk 0:02:49]}  Be7 {[%clk 0:03:02]} 8. Bd3 {[%clk 0:02:46]}  O-O {[%clk 0:02:58]} 9. Qc2 {[%clk 0:02:46]}  h6 {[%clk 0:02:44]} 10. e4 {[%clk 0:02:44]}  Nxc3 {[%clk 0:02:44]} 11. bxc3 {[%clk 0:02:44]}  c5 {[%clk 0:02:45]} 12. O-O {[%clk 0:02:44]}  Qc8 {[%clk 0:02:36]} 13. Qe2 {[%clk 0:02:36]}  Ba6 {[%clk 0:02:34]} 14. Rd1 {[%clk 0:02:36]}  Bxd3 {[%clk 0:02:23]} 15. Rxd3 {[%clk 0:02:37]}  cxd4 {[%clk 0:02:24]} 16. cxd4 {[%clk 0:02:35]}  Nd7 {[%clk 0:02:25]} 17. Bb2 {[%clk 0:02:22]}  Qa6 {[%clk 0:02:10]} 18. Re1 {[%clk 0:01:44]}  Rac8 {[%clk 0:02:08]} 19. h3 {[%clk 0:01:44]}  Rc7 {[%clk 0:02:05]} 20. d5 {[%clk 0:01:40]}  exd5 {[%clk 0:02:00]} 21. exd5 {[%clk 0:01:36]}  Nc5 {[%clk 0:01:33]} 22. d6 {[%clk 0:00:45]}  Qxd3 {[%clk 0:01:30]} 23. dxc7 {[%clk 0:00:40]}  Qxe2 {[%clk 0:01:30]} 24. Rxe2 {[%clk 0:00:40]}  Bd6 {[%clk 0:01:30]} 25. Nd4 {[%clk 0:00:23]}  Bxc7 {[%clk 0:01:28]} 26. Nc6 {[%clk 0:00:22]}  a5 {[%clk 0:01:18]} 27. Re7 {[%clk 0:00:19]}  Bd6 {[%clk 0:01:16]} 28. Ra7 {[%clk 0:00:18]}  Rc8 {[%clk 0:00:53]} 29. Ne7+ {[%clk 0:00:13]}  Bxe7 {[%clk 0:00:53]} 30. Rxe7 {[%clk 0:00:14]}  Rd8 {[%clk 0:00:54]} 31. g4 {[%clk 0:00:09]}  Rd2 {[%clk 0:00:43]} 32. Be5 {[%clk 0:00:05]}  Re2 {[%clk 0:00:32]} 33. Kg2 {[%clk 0:00:04]}  Nd3 {[%clk 0:00:29]} 34. Bd6 {[%clk 0:00:03]}  Rxe7 {[%clk 0:00:18]} 35. Bxe7 {[%clk 0:00:04]}  b5 {[%clk 0:00:18]} 36. Kf3 {[%clk 0:00:03]}  f6 {[%clk 0:00:17]} 37. Ke3 {[%clk 0:00:03]}  Ne5 {[%clk 0:00:17]} 38. Ke4 {[%clk 0:00:03]}  Kf7 {[%clk 0:00:18]} 39. Bd8 {[%clk 0:00:03]}  Nc6 {[%clk 0:00:18]} 40. Bb6 {[%clk 0:00:03]}  Ke6 {[%clk 0:00:18]} 41. f4 {[%clk 0:00:04]}  b4 {[%clk 0:00:15]} 42. axb4 {[%clk 0:00:04]}  axb4 {[%clk 0:00:16]} 43. Bc5 {[%clk 0:00:04]}  b3 {[%clk 0:00:14]} 44. f5+ {[%clk 0:00:05]}  Kf7 {[%clk 0:00:13]} 45. Ba3 {[%clk 0:00:05]}  Ne5 {[%clk 0:00:13]} 46. Kd4 {[%clk 0:00:04]}  Nf3+ {[%clk 0:00:12]} 47. Kc3 {[%clk 0:00:04]}  Ng5 {[%clk 0:00:09]} 48. Kxb3 {[%clk 0:00:05]}  Nxh3 {[%clk 0:00:09]} 49. Bc5 {[%clk 0:00:05]}  Ng5 {[%clk 0:00:05]} 50. Kc3 {[%clk 0:00:05]}  Ne4+ {[%clk 0:00:05]} 51. Kd4 {[%clk 0:00:05]}  Nxc5 {[%clk 0:00:05]} 52. Kxc5 {[%clk 0:00:05]}  g6 {[%clk 0:00:06]} 53. Kd4 {[%clk 0:00:04]}  gxf5 {[%clk 0:00:06]} 54. gxf5 {[%clk 0:00:05]}  Ke7 {[%clk 0:00:06]} 55. Ke4 {[%clk 0:00:05]}  Kd6 {[%clk 0:00:07]} 56. Kf4 {[%clk 0:00:04]}  Kd5 {[%clk 0:00:07]} 57. Kg4 {[%clk 0:00:05]}  Ke4 {[%clk 0:00:08]} 58. Kh5 {[%clk 0:00:05]}  Kxf5 {[%clk 0:00:09]} 0-1


[Site "https://www.chess.com"]

[Event "Titled Tuesday Blitz December 06 Late 2022"]
[White "Averjanov, Alexey"]
[Black "Van Dael, Siem"]
[WhiteFideId "14109867"]
[BlackFideId "1049771"]
[WhiteElo "2659"]
[BlackElo "2336"]
[Result "1/2-1/2"]
[Round "08"]
[TimeControl "180+1"]
[Date "2022.12.06"]
[WhiteClock "0:00:06"]
[BlackClock "0:00:07"]

1. d4 {[%clk 0:03:00]}  Nf6 {[%clk 0:02:59]} 2. c4 {[%clk 0:03:00]}  g6 {[%clk 0:03:00]} 3. Nc3 {[%clk 0:03:00]}  Bg7 {[%clk 0:03:00]} 4. e4 {[%clk 0:03:00]}  d6 {[%clk 0:03:01]} 5. Be2 {[%clk 0:03:00]}  O-O {[%clk 0:03:01]} 6. Nf3 {[%clk 0:03:01]}  e5 {[%clk 0:03:02]} 7. O-O {[%clk 0:03:01]}  Nc6 {[%clk 0:03:02]} 8. d5 {[%clk 0:03:01]}  Ne7 {[%clk 0:03:03]} 9. Ne1 {[%clk 0:03:01]}  Nd7 {[%clk 0:03:02]} 10. Be3 {[%clk 0:03:01]}  f5 {[%clk 0:03:03]} 11. f3 {[%clk 0:03:02]}  f4 {[%clk 0:03:03]} 12. Bf2 {[%clk 0:03:02]}  g5 {[%clk 0:03:04]} 13. a4 {[%clk 0:03:02]}  Ng6 {[%clk 0:03:05]} 14. a5 {[%clk 0:03:02]}  a6 {[%clk 0:03:04]} 15. b4 {[%clk 0:02:55]}  Rf7 {[%clk 0:03:01]} 16. c5 {[%clk 0:02:56]}  Nf6 {[%clk 0:03:01]} 17. c6 {[%clk 0:02:50]}  bxc6 {[%clk 0:02:58]} 18. dxc6 {[%clk 0:02:50]}  Be6 {[%clk 0:02:59]} 19. Nd5 {[%clk 0:02:32]}  Bxd5 {[%clk 0:02:46]} 20. exd5 {[%clk 0:02:32]}  e4 {[%clk 0:02:47]} 21. Bd4 {[%clk 0:02:31]}  Nxd5 {[%clk 0:02:39]} 22. fxe4 {[%clk 0:02:20]}  Nc3 {[%clk 0:02:24]} 23. Bxc3 {[%clk 0:02:15]}  Bxc3 {[%clk 0:02:25]} 24. Bc4 {[%clk 0:02:04]}  Bxa1 {[%clk 0:02:19]} 25. Qxa1 {[%clk 0:02:01]}  Ne5 {[%clk 0:02:16]} 26. Bxf7+ {[%clk 0:01:58]}  Kxf7 {[%clk 0:02:17]} 27. Nf3 {[%clk 0:01:54]}  Nxf3+ {[%clk 0:02:09]} 28. gxf3 {[%clk 0:01:37]}  Rb8 {[%clk 0:01:53]} 29. Qd4 {[%clk 0:01:33]}  Rb5 {[%clk 0:01:47]} 30. Rd1 {[%clk 0:01:14]}  Qe8 {[%clk 0:01:24]} 31. Qc4+ {[%clk 0:01:09]}  Qe6 {[%clk 0:00:57]} 32. Rd5 {[%clk 0:01:08]}  Ke7 {[%clk 0:00:57]} 33. Kg2 {[%clk 0:00:53]}  g4 {[%clk 0:00:50]} 34. fxg4 {[%clk 0:00:29]}  Qxg4+ {[%clk 0:00:49]} 35. Kf2 {[%clk 0:00:30]}  Qh4+ {[%clk 0:00:49]} 36. Kg2 {[%clk 0:00:30]}  Qg4+ {[%clk 0:00:27]} 37. Kf2 {[%clk 0:00:30]}  f3 {[%clk 0:00:23]} 38. Rxb5 {[%clk 0:00:17]}  Qg2+ {[%clk 0:00:21]} 39. Ke3 {[%clk 0:00:16]}  axb5 {[%clk 0:00:19]} 40. Qxb5 {[%clk 0:00:07]}  f2 {[%clk 0:00:19]} 41. Qb7 {[%clk 0:00:07]}  f1=Q {[%clk 0:00:08]} 42. Qxc7+ {[%clk 0:00:07]}  Kf6 {[%clk 0:00:08]} 43. Qxd6+ {[%clk 0:00:06]}  Kg5 {[%clk 0:00:08]} 44. Qe7+ {[%clk 0:00:05]}  Kh5 {[%clk 0:00:07]} 45. Qxh7+ {[%clk 0:00:05]}  Kg4 {[%clk 0:00:06]} 46. Qg6+ {[%clk 0:00:05]}  Kh4 {[%clk 0:00:05]} 47. Qh6+ {[%clk 0:00:05]}  Kg4 {[%clk 0:00:05]} 48. Qg6+ {[%clk 0:00:05]}  Kh4 {[%clk 0:00:06]} 49. Qh6+ {[%clk 0:00:06]}  Kg4 {[%clk 0:00:07]} 50. Qg6+ {[%clk 0:00:06]} 1/2-1/2


[Site "https://www.chess.com"]